Cogmind - Beta 13 @@@ ROGUE MODE // 2024.03.30 @ 20:20:57 Player: puppuppit Result: Destroyed by S-27 Virus with Autogun Performance ------------- Evolutions (6) 3000 Regions Visited (23) 4600 Robots Destroyed (433) 2165 Value Destroyed (18799) 18799 Prototype IDs (67) 1340 Alien Tech Used (0) 0 Bonus (15257) 15257 TOTAL SCORE: 45161 Bonus ------- Triggered High Security 1500 High Alert Combat Kills 6380 Follower Combat Kills 3099 Entered Garrisons 600 Aligned with FarCom 300 Met Imprinter 300 Acquired ECA 300 Met Warlord at Base 500 MAIN.C Attacked Warlord 500 Warlord Defense Kills 4944 Friendly Fire -3166 Cogmind --------- Core Integrity 0/1150 Matter 186/300 Energy 76/150 System Corruption 18% Temperature Warm (126) Movement Flying (275) Ox3 Location -4/Upper Caves Parts ------- > --- POWER (2) -------- Micro Nuclear Core > --- PROPULSION (5) --- VTOL Module > --- UTILITY (10) ----- Improved Target Analyzer Advanced Target Analyzer Advanced Target Analyzer Advanced Hacking Suite System Shield > --- WEAPON (2) ------- Advanced Plasma Cannon > --- INVENTORY (5) ---- Precision Matter Filter Hypervelocity Mass Driver Peak State ------------ > --- POWER ------------ Light Angular Momentum Engine Antimatter Reactor > --- PROPULSION ------- Combat Gravmag System Improved Linear Gravjet Improved Linear Gravjet Improved Linear Gravjet Combat Linear Gravjet > --- UTILITY ---------- Advanced Cooling System Improved Signal Interpreter Advanced Target Analyzer Experimental Reaction Control System Centrium Light Armor Plating System Shield Improved System Shield Advanced System Shield Advanced System Shield Mini Drone Bay > --- WEAPON ----------- Vortex Shotgun Heavy Gauss Cannon > --- INVENTORY -------- Antimatter Reactor Improved Linear Gravjet System Shield Heavy Linear Accelerator [Rating: 128] Favorites ----------- Power Micro Nuclear Core Engine Light Ion Engine Power Core Micro Nuclear Core Reactor Light Antimatter Reactor Propulsion Gravmag Array Wheel Wheel Hover Unit Gravmag Array Flight Unit VTOL Module Utility Advanced System Shield Device Advanced Cooling System Storage Small Storage Unit Processor 0b10 Decoder Chip [Skirmisher] Hackware Advanced System Shield Protection Propulsion Shielding Weapon Mini Grenade Launcher Energy Gun Precision Beam Rifle Energy Cannon Enhanced Nova Cannon Ballistic Gun KE Penetrator Ballistic Cannon Magnetic Acceleration Cannon Launcher Mini Grenade Launcher Special Weapon RU-N14's Throwing Claymores v3 Slashing Weapon Katana Build | -11 -10 -10 -10 -9 -8 -8 -7 -7 -7 -7 -6 -6 -6 -5 -5 -5 -5 -5 -5 -4 -4 -4 -4 ------- Run | Yrd Mat Min Exi Min Mat Gar Fac Low Low Zio Pro Fac Gar Fac Gar Fac Upp Upp War Pro Fac Upp Upp Slots Evolved 12 | . . . . . 4 . 2 . . . . 2 . 2 . . . . . . 2 . . Power 1 | . . . . . . . . . . . . . . . . . . . . . 1 . . Propulsion 3 | . . . . . 2 . . . . . . . . . . . . . . . 1 . . Utility 8 | . . . . . 2 . 2 . . . . 2 . 2 . . . . . . . . . Weapon . | . . . . . . . . . . . . . . . . . . . . . . . . Parts Attached 406 | 7 20 2 1 9 49 33 26 4 5 8 1 75 10 14 25 36 1 6 25 1 43 3 2 Power 59 | 1 3 . . 1 10 6 2 . . . . 9 2 1 5 2 . 2 7 . 7 . 1 Engine 19 | 1 3 . . 1 9 2 . . . . . . . 1 . . . . 1 . 1 . . Core 27 | . . . . . 1 4 2 . . . . 9 . . . 2 . 1 4 . 3 . 1 Reactor 13 | . . . . . . . . . . . . . 2 . 5 . . 1 2 . 3 . . Propulsion 95 | 2 9 . . 2 13 9 8 1 1 1 1 16 1 5 2 8 . . 4 . 11 1 . Treads . | . . . . . . . . . . . . . . . . . . . . . . . . Leg . | . . . . . . . . . . . . . . . . . . . . . . . . Wheel 10 | 2 6 . . 2 . . . . . . . . . . . . . . . . . . . Hover 54 | . 3 . . . 4 2 1 . . . . 13 1 5 2 8 . . 4 . 11 . . Flight 31 | . . . . . 9 7 7 1 1 1 1 3 . . . . . . . . . 1 . Utility 123 | 2 4 . . . 15 6 13 1 3 5 . 25 3 5 2 20 . 1 6 . 12 . . Device 47 | 1 2 . . . 6 2 6 . . 3 . 12 3 . . 6 . 1 1 . 4 . . Storage 6 | 1 1 . . . . . . . . . . 2 . . . 2 . . . . . . . Processor 14 | . . . . . . . 1 . . 1 . 1 . 4 . 3 . . 1 . 3 . . Hackware 18 | . . . . . . 1 4 . 2 . . 2 . . . 5 . . . . 4 . . Protection 38 | . 1 . . . 9 3 2 1 1 1 . 8 . 1 2 4 . . 4 . 1 . . Artifact . | . . . . . . . . . . . . . . . . . . . . . . . . Weapon 129 | 2 4 2 1 6 11 12 3 2 1 2 . 25 4 3 16 6 1 3 8 1 13 2 1 Energy Gun 21 | 1 . . . . 7 2 . 1 . . . 2 3 1 . . . . 3 . 1 . . Energy Cannon 20 | . 2 2 . 3 1 . . . . . . . . . 3 2 . 1 . . 5 . 1 Ballistic Gun 13 | 1 . . . . . 3 . . 1 2 . . . . 4 1 . . . . 1 . . Ballistic Cannon 17 | . . . . . . . . . . . . 5 . 1 2 1 . . . . 6 2 . Launcher 46 | . 2 . 1 3 3 5 3 1 . . . 14 . . 7 2 1 2 1 1 . . . Special Weapon 10 | . . . . . . 2 . . . . . 2 1 1 . . . . 4 . . . . Impact Weapon . | . . . . . . . . . . . . . . . . . . . . . . . . Slashing Weapon 2 | . . . . . . . . . . . . 2 . . . . . . . . . . . Piercing Weapon . | . . . . . . . . . . . . . . . . . . . . . . . . Special Melee Weapon . | . . . . . . . . . . . . . . . . . . . . . . . . Unidentified Prototypes 16 | . . . . . 5 . . . . 1 . 3 . . . 2 . . 4 . 1 . . Corrupted Parts 1 | . . . . . . . . . . . . . . . . . . . 1 . . . . System Corruption 10 | . . . . . . . . . . . . . . . . . . . 10 . . . . Parts Lost 100 | . 4 . . 1 11 8 4 3 3 . . 17 4 1 4 5 . 4 5 1 22 3 . Power 16 | . 1 . . 1 2 1 1 . . . . 4 1 . 1 1 . 1 1 . 1 . . Propulsion 31 | . 2 . . . 6 4 3 1 1 . . 4 . 1 1 1 . . 1 . 6 . . Utility 33 | . . . . . 3 1 . 1 1 . . 5 2 . 1 3 . 1 2 . 11 2 . Weapon 20 | . 1 . . . . 2 . 1 1 . . 4 1 . 1 . . 2 1 1 4 1 . Highest Loss Streak 8 | . 2 . . 1 7 3 2 2 3 . . 5 2 1 3 2 . 3 2 1 8 3 . To Critical Strikes . | . . . . . . . . . . . . . . . . . . . . . . . . Average Slot Usage (%) 87 | . 90 91 73 84 85 96 97 96 84 97 100 78 80 91 88 86 94 93 94 94 79 33 36 Engine 2 | . 13 14 14 13 7 4 . . . . . . . 2 . . . . . . . . . Core 3 | . . . . . . 4 6 7 7 7 7 5 3 . . 2 5 3 3 5 2 . 2 Reactor 1 | . . . . . . . . . . . . . 2 2 4 2 . . . . 4 . . Wheel 1 | . 13 28 28 28 3 . . . . . . . . . . . . . . . . . . Hover 11 | . 14 . . . 5 12 . . . . . 12 16 18 16 16 17 17 20 23 18 . . Flight 8 | . . . . . 17 20 28 26 22 28 30 3 . . . . . . . . . 1 5 Device 9 | . 11 14 14 14 13 15 7 7 1 2 15 9 8 7 5 11 5 7 9 11 8 . . Storage 3 | . 14 14 14 14 9 9 7 . . . . . 6 5 5 4 . . . . . . . Processor 9 | . . . . . . . 1 7 2 1 7 7 13 27 29 20 17 17 18 17 12 15 15 Hackware 15 | . . . . . . 2 20 23 32 34 23 18 13 11 11 12 23 20 17 17 22 14 10 Protection 5 | . 2 . . . 10 9 6 6 7 5 . 6 5 . 4 2 11 11 9 11 2 . . Energy Gun 2 | . 4 . . . 7 9 6 6 1 . . 1 8 8 . . . . 1 5 . . . Energy Cannon 1 | . 4 11 2 7 . . . . . . . . . . 1 3 5 4 . . . . 2 Launcher 4 | . 7 8 . 6 8 6 6 6 7 7 7 6 . . 2 1 5 5 4 . . . . Naked Turns . | . . . . . . . . . . . . . . . . . . . . . . . . Heaviest Build 60 | 13 17 17 17 13 25 26 23 14 14 14 12 47 36 38 57 55 35 42 43 46 60 12 . Greatest Support 58 | 20 20 20 20 20 31 35 29 14 10 14 18 50 38 43 48 57 48 48 49 46 58 4 4 Greatest Overweight (x) 5 | 2 1 . . . 1 1 1 1 2 1 . 1 . . 1 1 . 1 5 . 1 3 . Average Overweight (x) . | . . . . . . . . . 1 . . . . . . . . . . . . . . Largest Inventory Capacity 10 | 8 8 8 8 8 8 8 8 8 5 5 5 10 10 10 10 10 5 5 5 5 5 5 5 Average Capacity 6 | 7 8 8 8 8 8 8 8 5 5 5 5 5 10 10 10 9 5 5 5 5 5 5 5 Most Carried 10 | 5 8 8 8 8 8 8 8 8 5 5 5 7 7 10 10 10 5 5 5 4 5 4 4 Average Carried 6 | 1 7 7 7 7 7 7 7 4 4 4 5 4 6 7 9 8 5 4 4 4 4 3 3 Final Capacity 10 | 8 8 8 8 8 8 8 8 5 5 5 5 10 10 10 10 5 5 5 5 5 5 5 5 Final Carried 10 | 5 8 7 7 8 8 8 8 5 5 5 5 6 5 10 10 5 5 5 5 4 4 4 2 Class Distribution -------------------- 55% | Hacker-Mutant 14% | Mutant 9% | Hacker-Sprinter 7% | Scavenger-Mutant 3% | Sprinter Dominant Class ---------------- Mutant | -10/Materials Mutant | -10/Mines Mutant | -10/Exiles Mutant | -9/Mines Sprinter | -8/Materials Mutant | -8/Garrison Hacker-Sprinter | -7/Factory Hacker-Sprinter | -7/Lower Caves Hacker-Mutant | -7/Lower Caves Hacker-Sprinter | -7/Zion Hacker-Sprinter | -6/Proximity Caves Hacker-Mutant | -6/Factory Scavenger-Mutant | -6/Garrison Scavenger-Mutant | -5/Factory Scavenger-Mutant | -5/Garrison Hacker-Mutant | -5/Factory Hacker-Mutant | -5/Upper Caves Hacker-Mutant | -5/Upper Caves Hacker-Mutant | -5/Warlord Hacker-Mutant | -4/Proximity Caves Hacker-Mutant | -4/Factory Hacker-Mutant | -4/Upper Caves Hacker-Mutant | -4/Upper Caves Resources | -11 -10 -10 -10 -9 -8 -8 -7 -7 -7 -7 -6 -6 -6 -5 -5 -5 -5 -5 -5 -4 -4 -4 -4 ----------- Run | Yrd Mat Min Exi Min Mat Gar Fac Low Low Zio Pro Fac Gar Fac Gar Fac Upp Upp War Pro Fac Upp Upp Matter Collected 12254 | 297 482 . . 352 823 676 694 110 120 76 99 3735 95 275 976 1481 66 218 831 47 557 244 . Remotely 1665 | . 173 . . 352 318 568 . . . . . 254 . . . . . . . . . . . Salvage Created 11313 | 188 630 . . 200 786 609 845 51 79 46 70 1998 . 435 609 1902 257 289 1021 59 1132 85 22 Parts 621 | 20 59 . . 20 56 32 44 3 7 1 7 117 . 18 29 79 6 9 46 3 56 8 1 Haulers Intercepted 11 | . 2 . . . 4 . . . . . . 1 . . . 3 . . . . 1 . . Recyclers Shooed 9 | . . . . . 1 . . . . . . 7 . . . . . . . . 1 . . Parts Field Recycled . | . . . . . . . . . . . . . . . . . . . . . . . . Retrieved Matter . | . . . . . . . . . . . . . . . . . . . . . . . . Parts Self-Destructed 42 | . . . . . . . . 6 4 . 7 . . . . . 6 7 . 3 . 9 . Prevented . | . . . . . . . . . . . . . . . . . . . . . . . . Kills | -11 -10 -10 -10 -9 -8 -8 -7 -7 -7 -7 -6 -6 -6 -5 -5 -5 -5 -5 -5 -4 -4 -4 -4 ------- Run | Yrd Mat Min Exi Min Mat Gar Fac Low Low Zio Pro Fac Gar Fac Gar Fac Upp Upp War Pro Fac Upp Upp Combat Hostiles Destroyed 312 | . 17 . . 12 28 20 22 1 4 . 3 42 . 5 28 28 6 11 48 5 27 4 1 Guns 32 | . 3 . . . 4 7 3 . . . . . . 3 3 1 . . 3 2 3 . . Cannons 43 | . . . . . . . . . . . . 6 . 2 4 12 1 1 4 . 8 4 1 AOE 235 | . 14 . . 12 24 13 19 1 4 . 3 36 . . 21 14 4 10 41 3 16 . . Classes Destroyed 23 | 2 7 . . 2 3 2 . 1 . . . 2 . . . 1 . . 2 . 1 . . Worker 34 | . 6 . . 1 2 . 3 . . . . 14 . 1 . 5 . . . . 2 . . Builder 15 | . 3 . . 2 1 . . . . . . 7 . . . 1 . . . . 1 . . Tunneler 10 | 5 1 . . . . . . . . . . 2 . . . 1 . . . . 1 . . Hauler 11 | . 2 . . . 4 . . . . . . 1 . . . 3 . . . . 1 . . Recycler 11 | 1 . . . . 1 . . . . . . 4 . 1 . 3 . . . . 1 . . Minesweeper 2 | . . . . . . . . 1 . . . . . . . . . 1 . . . . . Mechanic 3 | . . . . . 1 . 1 . . . . . . . . 1 . . . . . . . Operator 10 | . 2 . . . 1 . . . . . . 4 . 1 . 2 . . . . . . . Watcher 15 | . 3 . . . 3 . 4 . . . . 2 . . . 3 . . . . . . . Swarmer 86 | . 6 . . 7 12 3 2 1 4 . 2 2 . . 9 7 1 3 8 5 9 4 1 Cutter 3 | . . . . . . . . . . . . . . . . . . . . . 3 . . Saboteur 7 | . . . . . . . . . . . . . . . . 2 . . 5 . . . . Grunt 127 | . 11 . . 2 14 11 11 . . . . 22 . . 10 11 4 8 18 . 5 . . Brawler 13 | . . . . 1 1 . 2 . . . . 1 . . 1 1 1 . 5 . . . . Duelist 7 | . . . . 2 . . 1 . . . . 1 . . . 1 . . 2 . . . . Protector 6 | . . . . . 1 . 1 . . . . 2 . . . 1 . . 1 . . . . Sentry 19 | . . . . . 1 4 2 . . . . . . 3 4 2 . . . . 3 . . Demolisher 2 | . . . . . . . . . . . . 1 . . . . . . 1 . . . . Specialist 9 | . . . . . . 1 4 . . . . 2 . . . . . . 2 . . . . Hunter 16 | . . . . . . . . . . . . 7 . 2 3 1 . . 2 . 1 . . Programmer 23 | . . . . . . 1 . . . . 1 5 . . 1 7 . . 2 . 6 . . Executioner 2 | . . . . . . . . . . . . . . . . . . . 2 . . . . Decomposer 3 | . . . . . . . . . 1 . . . . . . . . . . 2 . . . Thug 1 | . . . . . . . . . . . . . . . . . . . 1 . . . . Mutant 1 | . . . . . . . . . . . . . . . . . . . 1 . . . . Best Kill Streak 16 | 6 8 . . 6 16 3 9 1 4 . 2 12 . 3 5 8 6 7 11 5 5 4 1 Combat Bots Only 13 | . 5 . . 4 13 3 9 1 4 . 2 9 . 3 5 6 6 7 11 5 5 4 1 Max Kills in Single Turn 7 | 1 3 . . 3 3 2 3 1 2 . 2 4 . 1 3 6 2 3 7 2 5 1 1 Gunslinging . | . . . . . . . . . . . . . . . . . . . . . . . . Exploded 6 | . 2 . . 3 3 2 3 1 2 . 2 3 . . 3 3 2 3 6 2 4 . . Melee . | . . . . . . . . . . . . . . . . . . . . . . . . Uniques/NPCs Destroyed . | . . . . . . . . . . . . . . . . . . . . . . . . Combat | -11 -10 -10 -10 -9 -8 -8 -7 -7 -7 -7 -6 -6 -6 -5 -5 -5 -5 -5 -5 -4 -4 -4 -4 -------- Run | Yrd Mat Min Exi Min Mat Gar Fac Low Low Zio Pro Fac Gar Fac Gar Fac Upp Upp War Pro Fac Upp Upp Hostile Shots Fired 1537 | . 43 . . 8 96 79 104 37 25 . 9 357 86 34 78 89 12 31 143 15 234 40 17 Missed 653 | . 20 . . 4 44 30 46 24 4 . 3 153 35 14 31 26 4 13 82 10 94 13 3 Damage Taken 16084 | . 446 . . 108 787 859 572 157 391 . 132 3442 570 461 849 1648 160 369 996 113 3410 401 213 Core 3326 | . 171 . . 6 128 165 148 51 129 . 35 608 65 92 78 236 39 101 79 38 870 191 96 Absorbed by Shields 527 | . . . . . . . 251 . . . . 71 46 . 94 . . 24 25 . 16 . . Redirected to Shielding 169 | . 2 . . . 54 . . . . . . 38 . . . . 8 18 14 10 25 . . Regen/Repaired (Parts) 620 | . . . . . . . . . . . . 74 . . . 196 . . 183 . 167 . . Core Remaining (%) 46 | 100 . . . 29 . 46 . . . . 48 . 20 . . . . . . 33 . . . Volleys Fired 908 | 9 54 . . 19 58 70 74 20 9 9 5 160 23 29 81 109 5 20 49 5 84 11 5 Largest 2 | 2 2 . . 1 2 2 2 2 1 1 2 2 2 2 2 2 2 2 2 1 2 1 1 Hottest 159 | 60 112 . . 56 122 122 97 91 30 28 63 92 144 144 132 159 159 159 79 60 121 66 98 Shots Fired 1158 | 18 79 . . 19 72 104 104 23 9 9 6 184 31 47 100 136 9 27 55 5 106 10 5 Gun 417 | 18 46 . . . 32 68 64 17 . 9 3 26 30 25 31 11 . . 9 2 26 . . Cannon 351 | . 7 . . 6 . . . . . . . 78 . 20 33 98 5 9 . . 80 10 5 Launcher 375 | . 26 . . 13 40 34 40 6 9 . 3 78 . . 36 27 4 18 38 3 . . . Special 15 | . . . . . . 2 . . . . . 2 1 2 . . . . 8 . . . . Kinetic 317 | 9 23 . . . . 8 . . . 9 3 78 . 20 40 41 . . . . 76 10 . Thermal 366 | . . . . . 32 60 64 17 . . . 7 22 27 24 68 5 9 4 . 22 . 5 Explosive 380 | . 26 . . 13 40 34 40 6 9 . 3 75 . . 36 27 4 18 46 3 . . . Electromagnetic 75 | 9 30 . . 6 . . . . . . . 22 8 . . . . . . . . . . Entropic 15 | . . . . . . . . . . . . . . . . . . . 5 2 8 . . Robot Hit Streak 19 | 7 5 . . 4 9 13 18 11 2 5 2 11 12 16 9 19 2 4 6 4 8 5 1 Robot Miss Streak 7 | 2 5 . . 1 2 3 7 4 1 1 2 3 2 2 3 3 2 5 3 7 6 3 4 Penetration Max 1 | . . . . . . . . . . . . . . 1 . . . . . . . . . Secondary Targets 1 | . . . . . . 1 . . . . . . . . . . . . . . . . . Max Gunslinging Chain 1 | . . . . . . 1 . . . . . . . . . . . . . . . . . Shots Hit Robots 624 | 13 30 . . 9 46 62 61 17 2 7 2 116 16 29 37 84 4 8 33 2 41 4 1 Core Hits 905 | 7 42 . . 20 74 46 111 8 6 2 6 184 3 16 55 96 9 24 142 11 37 5 1 Critical Kills 13 | . . . . . . . . . . . . . . . 1 . 1 . . . 7 4 . Critical Parts Destroyed 9 | . . . . . . . . . . . . . . . 1 . . . . . 7 1 . Critical Strikes 54 | . . . . . 3 6 3 . . . . 4 . 2 7 6 1 . 2 . 15 5 . Burn 12 | . . . . . 3 6 3 . . . . . . . . . . . . . . . . Meltdown 1 | . . . . . . . . . . . . . . . . . 1 . . . . . . Destroy 20 | . . . . . . . . . . . . . . . 2 . . . . . 13 5 . Blast 18 | . . . . . . . . . . . . 4 . 2 5 6 . . . . 1 . . Sever 2 | . . . . . . . . . . . . . . . . . . . 2 . . . . Detonate 1 | . . . . . . . . . . . . . . . . . . . . . 1 . . Melee Attacks 6 | . . . . . . . . . . . . 6 . . . . . . . . . . . Impact . | . . . . . . . . . . . . . . . . . . . . . . . . Slashing 6 | . . . . . . . . . . . . 6 . . . . . . . . . . . Piercing . | . . . . . . . . . . . . . . . . . . . . . . . . Sneak Attacks 1 | . . . . . . . . . . . . 1 . . . . . . . . . . . Combat Hostiles . | . . . . . . . . . . . . . . . . . . . . . . . . Follow-up Attacks . | . . . . . . . . . . . . . . . . . . . . . . . . Damage Inflicted 58081 | 162 2163 . . 1230 3789 2460 4978 511 467 124 156 11905 294 750 4659 8470 459 1474 9405 387 4067 105 66 Guns 5207 | 162 316 . . . 449 811 649 257 . 124 27 349 294 434 412 202 . . 245 57 419 . . Cannons 7333 | . 80 . . 114 . . . . . . . 1359 . 316 610 3593 90 222 . . 778 105 66 Explosions 44925 | . 1767 . . 1116 3340 1649 4329 254 467 . 129 9937 . . 3637 4675 369 1252 8804 330 2870 . . Melee 260 | . . . . . . . . . . . . 260 . . . . . . . . . . . Ramming . | . . . . . . . . . . . . . . . . . . . . . . . . Kinetic 5945 | 72 137 . . . . 116 . . . 124 27 1359 . 316 896 2048 . . . . 745 105 . Thermal 9288 | . 58 . . . 449 695 808 257 . . . 570 256 434 126 3476 90 222 25 . 1756 . 66 Explosive 40343 | . 1709 . . 1116 3340 1649 4157 254 467 . 129 9186 . . 3637 2674 369 1252 8804 330 1270 . . Electromagnetic 1421 | 90 259 . . 114 . . 13 . . . . 530 38 . . 272 . . . . 105 . . Impact . | . . . . . . . . . . . . . . . . . . . . . . . . Slashing 616 | . . . . . . . . . . . . 260 . . . . . . 356 . . . . Piercing . | . . . . . . . . . . . . . . . . . . . . . . . . Entropic 468 | . . . . . . . . . . . . . . . . . . . 220 57 191 . . Highest Corruption 18 | . 1 1 1 1 . 1 . . . . . 2 1 . . . . . 10 10 18 18 18 Average Corruption 4 | . 1 1 1 1 . 1 . . . . . 1 1 . . . . . 10 10 6 18 18 Corruption Purged 4 | . . . . . . 1 . . . . . 2 1 . . . . . . . . . . Corruption Blocked . | . . . . . . . . . . . . . . . . . . . . . . . . Effects 60 | . 2 . 1 3 . 7 . . . . . 3 1 . . . . . 3 6 27 5 2 Message Errors 9 | . 1 . . 1 . 2 . . . . . . 1 . . . . . 1 1 2 . . Matter Fused 9 | . 1 . . 1 . 2 . . . . . . . . . . . . . 2 3 . . Heat Flow Errors 8 | . . . . . . 1 . . . . . 1 . . . . . . . 1 3 2 . Energy Discharges 7 | . . . 1 . . 1 . . . . . . . . . . . . 1 1 2 . 1 Data Loss (minor) 14 | . . . . . . 1 . . . . . . . . . . . . . 1 10 2 . Data Loss (major) 2 | . . . . 1 . . . . . . . . . . . . . . . . 1 . . Misfires 1 | . . . . . . . . . . . . 1 . . . . . . . . . . . Alerts 1 | . . . . . . . . . . . . . . . . . . . 1 . . . . Misdirections 4 | . . . . . . . . . . . . . . . . . . . . . 3 . 1 Weapon Failures 5 | . . . . . . . . . . . . 1 . . . . . . . . 3 1 . Overload Shots . | . . . . . . . . . . . . . . . . . . . . . . . . Overflow Damage 2279 | . 99 . . 61 94 29 32 5 11 . . 495 . . 71 659 . 43 171 . 509 . . Projectiles 495 | . 10 . . . . . . . . . . 54 . . . 313 . 43 . . 75 . . Explosions 1752 | . 89 . . 61 94 29 32 5 11 . . 409 . . 71 346 . . 171 . 434 . . Melee 32 | . . . . . . . . . . . . 32 . . . . . . . . . . . Knockbacks 34 | . . . . . . . . . . . . 15 . 4 . 11 . . . . 2 2 . Impact . | . . . . . . . . . . . . . . . . . . . . . . . . Kinetic 31 | . . . . . . . . . . . . 14 . 3 . 10 . . . . 2 2 . Secondary 3 | . . . . . . . . . . . . 1 . 1 . 1 . . . . . . . Self-Inflicted Damage 1616 | . 206 . . 75 79 131 25 53 64 . 40 172 . . . 275 . 47 21 38 390 . . Shots 46 | . 5 . . 3 4 4 1 2 2 . 1 7 . . . 4 . 1 2 1 9 . . Rammed . | . . . . . . . . . . . . . . . . . . . . . . . . Targets Rammed . | . . . . . . . . . . . . . . . . . . . . . . . . Kicked . | . . . . . . . . . . . . . . . . . . . . . . . . Crushed . | . . . . . . . . . . . . . . . . . . . . . . . . Highest Temperature 428 | . 97 . . 32 211 222 386 10 . 19 . 253 56 105 72 144 17 46 58 230 428 247 126 Average Temperature 64 | . 24 . . 14 43 62 101 3 . 5 . 54 23 33 21 20 11 27 14 122 111 125 70 Received Heat Transfer 3153 | . 102 . . . 342 243 251 24 . . . 882 123 54 123 411 63 126 82 . 327 . . Effects 4 | . . . . . . . . . . . . 2 . . . . . . . . 1 1 . Shutdowns 1 | . . . . . . . . . . . . . . . . . . . . . 1 . . Energy Bleed 1 | . . . . . . . . . . . . . . . . . . . . . . 1 . Interference 2 | . . . . . . . . . . . . 2 . . . . . . . . . . . Siege Activations . | . . . . . . . . . . . . . . . . . . . . . . . . Robots Corrupted 1 | . . . . . . . . . . . . . . . . 1 . . . . . . . Combat Hostiles 1 | . . . . . . . . . . . . . . . . 1 . . . . . . . Parts Fried 4 | . 2 . . 1 . . . . . . . . . . . 1 . . . . . . . Impact Corruptions . | . . . . . . . . . . . . . . . . . . . . . . . . Robots Melted 1 | . . . . . . . . . . . . . . . . . 1 . . . . . . Combat Hostiles 1 | . . . . . . . . . . . . . . . . . 1 . . . . . . Parts Melted 17 | . . . . 1 1 8 . . . . . . 1 1 2 2 . . . . 1 . . Heat Transferred 11637 | . 100 . . . 1174 1924 1633 555 . . . 548 546 948 300 2354 74 185 74 . 1122 . 100 Parts Sabotaged 6 | . . . . . . . . . . . . 6 . . . . . . . . . . . Parts Stolen . | . . . . . . . . . . . . . . . . . . . . . . . . Parts Stripped . | . . . . . . . . . . . . . . . . . . . . . . . . Power Chain Reactions 6 | . 2 . . . . . . . . . . 2 . . . . . . . . 2 . . Alert | -11 -10 -10 -10 -9 -8 -8 -7 -7 -7 -7 -6 -6 -6 -5 -5 -5 -5 -5 -5 -4 -4 -4 -4 ------- Run | Yrd Mat Min Exi Min Mat Gar Fac Low Low Zio Pro Fac Gar Fac Gar Fac Upp Upp War Pro Fac Upp Upp Peak Influence 3185 | 30 694 235 . 356 1038 2247 2772 . . . . 2525 2120 1377 2454 3185 . . . . 1661 . . Initial 1767 | . 19 235 . . 138 674 1169 . . . . 50 1767 1113 963 1288 . . . . 63 . . Average 1207 | 13 284 235 . 189 657 1631 1723 . . . . 976 1928 1195 1863 1637 . . . . 874 . . Maximum Alert Level 5 | . 2 1 . 1 3 5 5 . . . . 5 5 4 5 5 . . . . 5 . . Low Security (%) 13 | 100 52 . . 62 24 . . . . . . 18 . . . . . . . . 9 . . Level 1 5 | . 15 100 . 37 3 . . . . . . 8 . . . . . . . . 3 . . Level 2 9 | . 31 . . . 15 2 . . . . . 17 . . . . . . . . 11 . . Level 3 17 | . . . . . 55 22 . . . . . 20 . . 8 4 . . . . 57 . . Level 4 22 | . . . . . . 21 48 . . . . 8 . 100 18 66 . . . . 11 . . Level 5 25 | . . . . . . 53 13 . . . . 24 100 . 73 7 . . . . 6 . . High Security 5 | . . . . . . . 38 . . . . 2 . . . 20 . . . . . . . Max Security . | . . . . . . . . . . . . . . . . . . . . . . . . Squads Dispatched 82 | . 4 . . 1 3 . 15 . . . . 30 . 2 . 17 . . . . 10 . . Investigation 15 | . 4 . . . 1 . . . . . . 4 . . . 3 . . . . 3 . . Extermination 8 | . . . . . . . . . . . . 4 . . . 2 . . . . 2 . . Reinforcement 20 | . . . . . . . 4 . . . . 11 . 1 . 1 . . . . 3 . . Assault 33 | . . . . 1 2 . 10 . . . . 7 . . . 11 . . . . 2 . . Garrison 6 | . . . . . . . 1 . . . . 4 . 1 . . . . . . . . . Intercept . | . . . . . . . . . . . . . . . . . . . . . . . . Searches Triggered . | . . . . . . . . . . . . . . . . . . . . . . . . Construction Impeded 6 | . . . . . . . 1 . . . . 4 . . . 1 . . . . . . . Haulers Reinforced 4 | . . . . . . . 1 . . . . 3 . . . . . . . . . . . Active Scanning Responses . | . . . . . . . . . . . . . . . . . . . . . . . . Cargo Convoy Interrupts 1 | . . . . . . . . . . . . 1 . . . . . . . . . . . Stealth | -11 -10 -10 -10 -9 -8 -8 -7 -7 -7 -7 -6 -6 -6 -5 -5 -5 -5 -5 -5 -4 -4 -4 -4 --------- Run | Yrd Mat Min Exi Min Mat Gar Fac Low Low Zio Pro Fac Gar Fac Gar Fac Upp Upp War Pro Fac Upp Upp Distress Signals 14 | . 1 . . . 2 . 2 . . . . 2 . 1 . 2 . . . . 4 . . Communications Jammed 5 | . . . . . . . . . . . . . . . . 5 . . . . . . . Distress Signals 5 | . . . . . . . . . . . . . . . . 5 . . . . . . . Times Spotted 620 | . 26 . . 13 37 31 66 4 4 . 3 118 11 10 19 74 6 8 83 10 77 15 5 Peak Tracking Total 21 | . 5 . . 5 10 6 12 3 4 . 2 10 5 3 4 21 4 4 18 5 12 7 5 Tactical Retreats 45 | . 1 . . . 2 . 1 . . . . 13 1 . 2 2 1 . 3 . 15 4 . Traps | -11 -10 -10 -10 -9 -8 -8 -7 -7 -7 -7 -6 -6 -6 -5 -5 -5 -5 -5 -5 -4 -4 -4 -4 ------- Run | Yrd Mat Min Exi Min Mat Gar Fac Low Low Zio Pro Fac Gar Fac Gar Fac Upp Upp War Pro Fac Upp Upp Traps Triggered 18 | . . . . . . 3 . . . . . 2 6 . 3 1 . . . . 3 . . Indirectly 1 | . . . . . . . . . . . . . . . . 1 . . . . . . . Trap Hack Attempts . | . . . . . . . . . . . . . . . . . . . . . . . . Triggered . | . . . . . . . . . . . . . . . . . . . . . . . . Disarmed 4 | . . . . . . . . . . . . . . . . . . . . . 4 . . Reprogrammed 10 | . . . . . . . . . . . . 6 . . . . . . . . 4 . . Reused 3 | . . . . . . . . . . . . . . . . . . . . . 3 . . Traps Extracted . | . . . . . . . . . . . . . . . . . . . . . . . . Installed 13 | . . . . . . . . 3 . . . . . . . . . 10 . . . . . Triggered 16 | . . . . . . . . . . . 1 . . . . . . . 12 . 3 . . Machines | -11 -10 -10 -10 -9 -8 -8 -7 -7 -7 -7 -6 -6 -6 -5 -5 -5 -5 -5 -5 -4 -4 -4 -4 ---------- Run | Yrd Mat Min Exi Min Mat Gar Fac Low Low Zio Pro Fac Gar Fac Gar Fac Upp Upp War Pro Fac Upp Upp Machines Disabled 144 | . 15 . . . 6 11 18 . . . . 24 1 1 7 27 . 4 . . 30 . . Max in Single Turn 8 | . 4 . . . 2 2 5 . . . . 4 1 1 2 7 . 2 . . 8 . . Garrison Access 4 | . . . . . . . 2 . . . . 1 . . . . . . . . 1 . . Garrison Relay 11 | . . . . . . 6 . . . . . . 1 . 4 . . . . . . . . Phase Generator 1 | . . . . . . 1 . . . . . . . . . . . . . . . . . Machines Repaired . | . . . . . . . . . . . . . . . . . . . . . . . . Machines Dismantled . | . . . . . . . . . . . . . . . . . . . . . . . . Machines Sabotaged . | . . . . . . . . . . . . . . . . . . . . . . . . Overloaded Fab Kills . | . . . . . . . . . . . . . . . . . . . . . . . . Hacking | -11 -10 -10 -10 -9 -8 -8 -7 -7 -7 -7 -6 -6 -6 -5 -5 -5 -5 -5 -5 -4 -4 -4 -4 --------- Run | Yrd Mat Min Exi Min Mat Gar Fac Low Low Zio Pro Fac Gar Fac Gar Fac Upp Upp War Pro Fac Upp Upp Machines Accessed 104 | . 6 . 5 . 6 4 8 1 1 . . 32 1 4 2 11 . 1 3 . 19 . . Terminals 47 | . 4 . . . 5 4 2 . . . . 15 1 1 2 3 . . . . 10 . . Fabricators 13 | . . . . . . . 1 . . . . 4 . . . 4 . . . . 4 . . Repair Stations 10 | . 1 . . . . . 1 . . . . 3 . 2 . 2 . . . . 1 . . Recycling Units 9 | . 1 . . . . . 2 . . . . 5 . . . . . . . . 1 . . Scanalyzers 7 | . . . . . . . 1 . . . . 3 . . . 1 . . . . 2 . . Garrison Access 7 | . . . . . 1 . 1 . . . . 2 . 1 . 1 . . . . 1 . . Total Hacks 460 | . 19 . 50 . 13 6 34 1 1 . . 147 3 15 9 53 . 1 5 . 103 . . Successful 247 | . 7 . 50 . 2 3 18 1 1 . . 88 . 4 2 27 . 1 5 . 38 . . Failed 213 | . 12 . . . 11 3 16 . . . . 59 3 11 7 26 . . . . 65 . . Catastrophic 40 | . 2 . . . . 2 4 . . . . 8 1 3 2 6 . . . . 12 . . Database Lockouts . | . . . . . . . . . . . . . . . . . . . . . . . . Manual 120 | . 5 . 1 . 8 . 6 . . . . 53 . 4 1 2 . . . . 40 . . Terminals 223 | . 14 . . . 12 6 11 . . . . 86 3 8 9 15 . . . . 59 . . Fabricators 61 | . . . . . . . 6 . . . . 10 . . . 20 . . . . 25 . . Repair Stations 35 | . 3 . . . . . 3 . . . . 9 . 6 . 9 . . . . 5 . . Recycling Units 25 | . 2 . . . . . 3 . . . . 19 . . . . . . . . 1 . . Scanalyzers 37 | . . . . . . . 9 . . . . 19 . . . 5 . . . . 4 . . Garrison Access 21 | . . . . . 1 . 2 . . . . 4 . 1 . 4 . . . . 9 . . Terminal Hacks 127 | . 5 . 50 . 1 3 3 1 1 . . 35 . . 2 7 . 1 5 . 13 . . Record 57 | . . . 49 . . . . . . . . 3 . . . . . 1 4 . . . . Part Schematic 1 | . . . . . . . 1 . . . . . . . . . . . . . . . . Robot Schematic 5 | . . . . . . . 2 . . . . 3 . . . . . . . . . . . Robot Analysis 12 | . 2 . . . 1 . . . . . . 9 . . . . . . . . . . . Prototype ID Bank 12 | . 3 . . . . . . . . . . 7 . . . . . . . . 2 . . Open Door 5 | . . . . . . 1 . 1 1 . . 1 . . . . . . 1 . . . . Open DSF 1 | . . . . . . . . . . . . . . . . 1 . . . . . . . Branch Access Points 3 | . . . . . . . . . . . . 1 . . . 1 . . . . 1 . . Emergency Access Points 3 | . . . . . . 1 . . . . . 1 . . 1 . . . . . . . . Terminal Index 2 | . . . . . . . . . . . . . . . . 1 . . . . 1 . . Alert Level 3 | . . . . . . . . . . . . 2 . . . 1 . . . . . . . Unreport Threat 4 | . . . . . . . . . . . . 1 . . . 2 . . . . 1 . . Disarm Traps 1 | . . . . . . . . . . . . . . . . . . . . . 1 . . Reprogram Traps 2 | . . . . . . . . . . . . 1 . . . . . . . . 1 . . Dispatch Records 1 | . . . . . . . . . . . . . . . . . . . . . 1 . . Surveillance Status 1 | . . . . . . . . . . . . 1 . . . . . . . . . . . Recall Investigation 2 | . . . . . . . . . . . . 1 . . . . . . . . 1 . . Recall Extermination 1 | . . . . . . . . . . . . 1 . . . . . . . . . . . Recall Reinforcements 1 | . . . . . . . . . . . . 1 . . . . . . . . . . . Hauler Manifests 1 | . . . . . . . . . . . . . . . . . . . . . 1 . . Zone Layout 6 | . . . . . . . . . . . . 2 . . . 1 . . . . 3 . . Garrison Registry 1 | . . . . . . 1 . . . . . . . . . . . . . . . . . Security Stations 1 | . . . . . . . . . . . . . . . 1 . . . . . . . . Derelict Proto ID Bank 1 | . . . 1 . . . . . . . . . . . . . . . . . . . . Fabricator Hacks 34 | . . . . . . . 6 . . . . 8 . . . 13 . . . . 7 . . Network Status 6 | . . . . . . . 2 . . . . 1 . . . 1 . . . . 2 . . Load Schematic 14 | . . . . . . . 2 . . . . 4 . . . 6 . . . . 2 . . Build 14 | . . . . . . . 2 . . . . 3 . . . 6 . . . . 3 . . Repair Station Hacks 18 | . 1 . . . . . 1 . . . . 6 . 2 . 4 . . . . 4 . . Scan Component 9 | . . . . . . . 1 . . . . 2 . 2 . 2 . . . . 2 . . Repair 6 | . . . . . . . . . . . . 2 . . . 2 . . . . 2 . . Refit 3 | . 1 . . . . . . . . . . 2 . . . . . . . . . . . Recycling Unit Hacks 16 | . 1 . . . . . 2 . . . . 12 . . . . . . . . 1 . . Recycle Component 3 | . . . . . . . . . . . . 3 . . . . . . . . . . . Process 3 | . . . . . . . . . . . . 3 . . . . . . . . . . . Report Inventory 2 | . . . . . . . 2 . . . . . . . . . . . . . . . . Retrieve Matter 3 | . . . . . . . . . . . . 3 . . . . . . . . . . . Retrieve Components 5 | . 1 . . . . . . . . . . 3 . . . . . . . . 1 . . Scanalyzer 26 | . . . . . . . 5 . . . . 14 . . . 3 . . . . 4 . . Insert Component 12 | . . . . . . . 3 . . . . 6 . . . 1 . . . . 2 . . Analyze 14 | . . . . . . . 2 . . . . 8 . . . 2 . . . . 2 . . Garrison Access Hacks 6 | . . . . . 1 . 1 . . . . 2 . 1 . . . . . . 1 . . Unlock Access 4 | . . . . . 1 . . . . . . 2 . 1 . . . . . . . . . Seal Access 2 | . . . . . . . 1 . . . . . . . . . . . . . 1 . . Unauthorized Hacks 20 | . . . . . . . . . . . . 11 . 1 . . . . . . 8 . . Terminals 19 | . . . . . . . . . . . . 11 . 1 . . . . . . 7 . . Track 1 | . . . . . . . . . . . . 1 . . . . . . . . . . . Botnet 18 | . . . . . . . . . . . . 10 . 1 . . . . . . 7 . . Fabricators . | . . . . . . . . . . . . . . . . . . . . . . . . Repair Stations . | . . . . . . . . . . . . . . . . . . . . . . . . Recycling Units . | . . . . . . . . . . . . . . . . . . . . . . . . Scanalyzers . | . . . . . . . . . . . . . . . . . . . . . . . . Garrison Access 1 | . . . . . . . . . . . . . . . . . . . . . 1 . . Watchers 1 | . . . . . . . . . . . . . . . . . . . . . 1 . . Data Cores Recovered 2 | . 1 . . . 1 . . . . . . . . . . . . . . . . . . Used . | . . . . . . . . . . . . . . . . . . . . . . . . Hacking Detections 78 | . 5 . . . 6 2 5 . . . . 29 1 3 2 9 . . . . 16 . . Full Trace Events 15 | . 4 . . . 1 1 . . . . . 4 . . . 3 . . . . 2 . . Feedback Events 1 | . 1 . . . . . . . . . . . . . . . . . . . . . . Corruption 1 | . 1 . . . . . . . . . . . . . . . . . . . . . . Feedback Blocked . | . . . . . . . . . . . . . . . . . . . . . . . . Robot Schematics Acquired 7 | . . . . . . . 2 . . 2 . 3 . . . . . . . . . . . Robots Built 19 | . . . . . . . 3 . . . . 3 . . . 11 . . . . 2 . . Authchips 5 | . . . . . . . 2 . . . . . . . . 3 . . . . . . . Time 1339 | . . . . . . . 125 . . . . 366 . . . 594 . . . . 254 . . Total Robot Build Rating 71 | . . . . . . . 10 . . . . 10 . . . 43 . . . . 8 . . Part Schematics Acquired 28 | . . . . . . . 3 . . 16 . 6 . . . 1 . . . . 2 . . Parts Built 1 | . . . . . . . . . . . . . . . . . . . . . 1 . . Authchips . | . . . . . . . . . . . . . . . . . . . . . . . . Time 53 | . . . . . . . . . . . . . . . . . . . . . 53 . . Total Part Build Rating 6 | . . . . . . . . . . . . . . . . . . . . . 6 . . Parts Repaired 6 | . . . . . . . . . . . . 2 . . . 2 . . . . 2 . . Time 259 | . . . . . . . . . . . . 88 . . . 53 . . . . 118 . . Parts Recycled 3 | . . . . . . . . . . . . 3 . . . . . . . . . . . Recycled Matter 570 | . . . . . . . . . . . . 570 . . . . . . . . . . . Retrieved Matter 675 | . . . . . . . . . . . . 675 . . . . . . . . . . . Retrieved Components 11 | . 1 . . . . . . . . . . 10 . . . . . . . . . . . Parts Scanalyzed 12 | . . . . . . . 3 . . . . 6 . . . 1 . . . . 2 . . Part Schematics Acquired 11 | . . . . . . . 2 . . . . 6 . . . 1 . . . . 2 . . Parts Damaged . | . . . . . . . . . . . . . . . . . . . . . . . . Bothacking | -11 -10 -10 -10 -9 -8 -8 -7 -7 -7 -7 -6 -6 -6 -5 -5 -5 -5 -5 -5 -4 -4 -4 -4 ------------ Run | Yrd Mat Min Exi Min Mat Gar Fac Low Low Zio Pro Fac Gar Fac Gar Fac Upp Upp War Pro Fac Upp Upp Used RIF Installer . | . . . . . . . . . . . . . . . . . . . . . . . . Robots Hacked . | . . . . . . . . . . . . . . . . . . . . . . . . Non-combat . | . . . . . . . . . . . . . . . . . . . . . . . . Combat . | . . . . . . . . . . . . . . . . . . . . . . . . Robot Hacks Applied . | . . . . . . . . . . . . . . . . . . . . . . . . Relay Couplers Released 50 | . . . . . . 27 . . . . . 2 4 . 17 . . . . . . . . Machine Destruction 44 | . . . . . . 24 . . . . . 2 4 . 14 . . . . . . . . Programmers 6 | . . . . . . 3 . . . . . . . . 3 . . . . . . . . Fabnet Peak Effective % . | . . . . . . . . . . . . . . . . . . . . . . . . Robots Rewired 4 | . . . . . . 4 . . . . . . . . . . . . . . . . . Allies Hacked 3 | . . . . . . 1 . . . . . . . . . 2 . . . . . . . Hacks Repelled 1 | . . . . . . . . . . . . . . . . . . . 1 . . . . Allies | -11 -10 -10 -10 -9 -8 -8 -7 -7 -7 -7 -6 -6 -6 -5 -5 -5 -5 -5 -5 -4 -4 -4 -4 -------- Run | Yrd Mat Min Exi Min Mat Gar Fac Low Low Zio Pro Fac Gar Fac Gar Fac Upp Upp War Pro Fac Upp Upp Total Allies 35 | . . . . 3 . 7 3 . . . . 6 1 . . 13 . . . . 2 . . Largest Group 7 | . . . . 2 2 5 5 1 1 . . 4 2 2 . 7 . . . . 2 . . Highest-Rated Group 251 | . . . . 32 32 170 207 85 85 . . 172 180 180 . 251 . . . . 74 . . Highest-Rated Ally 99 | . . . . 31 16 85 85 85 85 . . 99 97 95 . 47 . . . . 37 . . Warlord Squad Rendezvous 5 | . . . . . . . . . . . . 5 . . . . . . . . . . . Muscle 3 | . . . . . . . . . . . . 3 . . . . . . . . . . . Pyro 2 | . . . . . . . . . . . . 2 . . . . . . . . . . . Total Orders 50 | . . . . . . 7 25 1 . . . 11 2 . . 2 . . . . 2 . . STAY 15 | . . . . . . 4 4 . . . . 5 1 . . 1 . . . . . . . FOLLOW 15 | . . . . . . 3 4 1 . . . 5 1 . . 1 . . . . . . . EXPLORE 13 | . . . . . . . 11 . . . . . . . . . . . . . 2 . . RETURN 7 | . . . . . . . 6 . . . . 1 . . . . . . . . . . . Ally Attacks 362 | . . . . 9 11 40 88 7 . . . 93 20 5 . 83 . . . . 6 . . Total Damage 10895 | . . . . 128 63 989 1873 352 . . . 3724 946 351 . 2361 . . . . 108 . . Kills 104 | . . . . . . 15 26 3 . . . 28 12 1 . 19 . . . . . . . Allies Corrupted 2 | . . . . . . . . . 1 . . . . . . 1 . . . . . . . Allies Melted 1 | . . . . . . . . . . . . . . . . . . . 1 . . . . Field Lobotomies 5 | . . . . . . 2 . . . . . 2 1 . . . . . . . . . . Intel | -11 -10 -10 -10 -9 -8 -8 -7 -7 -7 -7 -6 -6 -6 -5 -5 -5 -5 -5 -5 -4 -4 -4 -4 ------- Run | Yrd Mat Min Exi Min Mat Gar Fac Low Low Zio Pro Fac Gar Fac Gar Fac Upp Upp War Pro Fac Upp Upp Robot Analysis Total 12 | . 2 . . . 1 . . . . . . 9 . . . . . . . . . . . Derelict Logs Recovered 12 | . . . . 1 . . . 2 2 2 1 . . . . . . 2 . 1 . 1 . Drone Launches 17 | . . . . . . . 13 . . . . 1 . . . . . . . . 3 . . Drone Recoveries 11 | . . . . . . . 10 . . . . 1 . . . . . . . . . . . Decoded 0b10 Intel 98 | . . . . . . . . . . . . 52 6 8 5 27 . . . . . . . Garrisons 3 | . . . . . . . . . . . . . . 2 . 1 . . . . . . . Patrols 36 | . . . . . . . . . . . . 8 6 1 5 16 . . . . . . . Investigations 7 | . . . . . . . . . . . . 5 . . . 2 . . . . . . . Reinforcements 20 | . . . . . . . . . . . . 19 . . . 1 . . . . . . . Guards 32 | . . . . . . . . . . . . 20 . 5 . 7 . . . . . . . Exploration | -11 -10 -10 -10 -9 -8 -8 -7 -7 -7 -7 -6 -6 -6 -5 -5 -5 -5 -5 -5 -4 -4 -4 -4 ------------- Run | Yrd Mat Min Exi Min Mat Gar Fac Low Low Zio Pro Fac Gar Fac Gar Fac Upp Upp War Pro Fac Upp Upp Turns Passed 16375 | 92 906 45 224 308 597 1595 859 507 1097 398 204 2884 386 324 1020 1438 241 683 1123 119 1157 143 25 Spaces Moved 21406 | 65 891 54 273 306 836 1739 1403 705 908 1070 593 4062 350 408 1251 1599 383 1029 1515 227 1454 250 35 Core 292 | 9 . . . . . . . . . . . 5 . . . . . . 2 . 147 129 . Treads . | . . . . . . . . . . . . . . . . . . . . . . . . Legs . | . . . . . . . . . . . . . . . . . . . . . . . . Wheels 1118 | 56 397 54 273 306 32 . . . . . . . . . . . . . . . . . . Hover 13169 | . 494 . . . 172 1080 . . . . . 3356 350 408 1251 1599 383 1029 1513 227 1307 . . Flight 6827 | . . . . . 632 659 1403 705 908 1070 593 701 . . . . . . . . . 121 35 Fastest Speed 27 | 50 66 80 80 80 27 29 29 30 114 30 27 27 48 40 55 52 59 59 44 44 28 35 35 Average Speed 53 | 77 78 80 80 80 39 44 32 50 114 33 29 52 49 46 59 58 59 59 53 44 44 45 35 Slowest Speed 300 | 150 160 80 80 80 120 120 115 114 200 114 30 120 51 55 132 131 59 110 300 44 131 200 35 Overloaded Moves . | . . . . . . . . . . . . . . . . . . . . . . . . Propulsion Burnouts . | . . . . . . . . . . . . . . . . . . . . . . . . Robots Hopped 34 | . . . . . 4 8 8 8 . 1 . 4 . . . . . . . . . 1 . Cave-ins Triggered . | . . . . . . . . . . . . . . . . . . . . . . . . Exploration Rate (%) 55 | 3 92 17 61 57 43 96 37 76 82 85 58 69 34 12 87 38 55 84 88 53 44 50 6 Regions Visited 23 Branch Regions 13 Pre-discovered Areas 5 | . . . 1 . . . . 1 . 2 . . . . . . . 1 . . . . . Known Exits Taken 10 | . . . . . 1 . . 1 . . . 1 . 1 . 1 1 1 1 1 1 . . Unknown Exits Taken 10 | 1 1 1 1 1 . . 1 . 1 1 1 . . . . . . . . . . 1 . Scrap Searched 13 | . . . . 2 . . . 2 1 2 . . . . . . 1 3 . 1 . 1 . Spaces Dug 76 | . . . . . . . 6 . 19 . . 7 . 8 2 14 . . 12 . 8 . . Terrain Destroyed 3238 | . 101 . . 141 221 314 199 50 81 . 22 677 . 11 377 375 22 163 223 37 222 . 2 Melee 1 | . . . . . . . . . . . . 1 . . . . . . . . . . . Projectile 97 | . . . . . . . . . . . . 18 . 11 7 29 1 3 1 . 25 . 2 AOE 3140 | . 101 . . 141 221 314 199 50 81 . 22 658 . . 370 346 21 160 222 37 197 . . Terrain Rammed . | . . . . . . . . . . . . . . . . . . . . . . . . Walls Destroyed . | . . . . . . . . . . . . . . . . . . . . . . . . Machines Disabled . | . . . . . . . . . . . . . . . . . . . . . . . . Actions | -11 -10 -10 -10 -9 -8 -8 -7 -7 -7 -7 -6 -6 -6 -5 -5 -5 -5 -5 -5 -4 -4 -4 -4 --------- Run | Yrd Mat Min Exi Min Mat Gar Fac Low Low Zio Pro Fac Gar Fac Gar Fac Upp Upp War Pro Fac Upp Upp Total 25075 | 85 1019 55 280 347 1025 2439 1691 828 958 1103 617 4585 528 494 1430 1944 388 1070 1778 240 1861 267 43 Wait 1759 | . 19 . . 9 40 495 173 102 34 10 18 200 68 28 8 156 . 1 167 7 220 3 1 Move 21325 | 64 890 53 272 305 827 1726 1387 692 907 1067 592 4053 349 408 1250 1598 382 1028 1514 226 1453 247 35 Hop 25 | . . . . . 4 4 7 4 . 1 . 4 . . . . . . . . . 1 . Pick Up 156 | 5 13 . 2 2 15 17 8 3 1 1 . 26 4 3 19 17 . 2 6 . 11 1 . Fast Attach 189 | 7 6 . . 1 22 10 5 1 2 6 1 51 5 9 8 16 . 4 12 . 22 1 . Attach 107 | . 4 1 1 . 8 4 8 3 2 1 . 13 2 3 14 15 . 2 7 1 14 2 2 Detach 67 | . 4 . 2 . 5 2 6 . 1 2 . 8 . 7 7 8 . 1 1 . 12 1 . Swap 110 | . 10 1 . 8 19 19 13 . 1 1 . 11 3 2 3 5 1 . 6 . 7 . . Drop 233 | . 19 . 3 3 27 22 10 . 1 5 1 53 4 5 27 20 . 2 16 . 15 . . Fire 908 | 9 54 . . 19 58 70 74 20 9 9 5 160 23 29 81 109 5 20 49 5 84 11 5 Melee 6 | . . . . . . . . . . . . 6 . . . . . . . . . . . Ram . | . . . . . . . . . . . . . . . . . . . . . . . . Kick . | . . . . . . . . . . . . . . . . . . . . . . . . Crush . | . . . . . . . . . . . . . . . . . . . . . . . . Escape Stasis 132 | . . . . . . 26 . . . . . . 70 . 13 . . . . . 23 . . Rewire 45 | . . . . . . 44 . . . . . . . . . . . . . 1 . . . Trap 13 | . . . . . . . . 3 . . . . . . . . . 10 . . . . . Miscellaneous . | . . . . . . . . . . . . . . . . . . . . . . . . Route ------- -11/Scrapyard -10/Materials (discovered 3 exits: [*Mat x2] / [*Min]) -10/Mines -10/Exiles -9/Mines -8/Materials (discovered 3 exits: *Fac / [*Sto] / Gar) -8/Garrison (discovered 3 exits: *Fac x3) -7/Factory (discovered 2 exits: *Fac / *Low) -7/Lower Caves -7/Lower Caves -7/Zion (discovered 2 exits: Dee / [*Pro]) -6/Proximity Caves -6/Factory (discovered 7 exits: *Fac x2 / *Low x2 / *Ext x2 / Gar) -6/Garrison -5/Factory (discovered 2 exits: *Fac / Gar) -5/Garrison (discovered 3 exits: *Fac x3) -5/Factory (discovered 3 exits: *Fac / *Upp x2) -5/Upper Caves -5/Upper Caves (discovered 2 exits: *Fac / *War) -5/Warlord -4/Proximity Caves -4/Factory (discovered 3 exits: *Upp x2 / Arm) -4/Upper Caves -4/Upper Caves History --------- Turn | Location | Event 8 | -11/Scrapyard | Discovered new exit (range 15) 93 | -11/Scrapyard | Entered Materials 235 | -10/Materials | Discovered new exit (range 3) 303 | -10/Materials | Build established: Mutant 438 | -10/Materials | Discovered new exit (range 16) 660 | -10/Materials | Core integrity fell below 50% 692 | -10/Materials | Discovered new exit (range 10) 999 | -10/Materials | Entered Mines 1041 | -10/Mines | Deemed a non-threat by the Exiles lab entrance 1041 | -10/Mines | Discovered new exit (range 5) 1044 | -10/Mines | Entered Exiles 1066 | -10/Exiles | Met 8R-AWN 1079 | -10/Exiles | Met EX-HEX 1100 | -10/Exiles | Met EX-BIN 1111 | -10/Exiles | Aligned with FarCom system 1112 | -10/Exiles | Given EX-Vault access code 1144 | -10/Exiles | Opened EX-Vault 1150 | -10/Exiles | Found Field Lobotomy Kit 1167 | -10/Exiles | Warned to stay clear of 0b10 Research branches 1179 | -10/Exiles | Exiles lab attacked by MAIN.C 1236 | -10/Exiles | Learned location of Zion (-7) 1260 | -10/Exiles | Discovered new exit (range 10) 1268 | -10/Exiles | Left Exiles lab with Field Lobotomy Kit 1268 | -10/Exiles | Entered Mines 1441 | -9/Mines | Met a Derelict testing a Signal Generator 1448 | -9/Mines | Found Signal Generator 1513 | -9/Mines | Discovered new exit (range 4) 1531 | -9/Mines | Learned Materials emergency access door positions 1570 | -9/Mines | Assisted by bots powering up and referring to "LRC-V3" 1576 | -9/Mines | Entered Materials 1576 | -8/Materials | Accompanied by 2 allies 1576 | -8/Materials | Evolved 4 slots: Propulsion x2, Utility x2 1767 | -8/Materials | Discovered new exit (range 15) 1774 | -8/Materials | Destroyed 9 combat bots 1899 | -8/Materials | Lost 7 parts (2p3n2u) 1909 | -8/Materials | Destroyed 13 combat bots 1934 | -8/Materials | Discovered new exit (range 15) 1951 | -8/Materials | Build established: Sprinter 1976 | -8/Materials | First assault squad dispatched 2082 | -8/Materials | Lost 4 parts (3n1u) 2148 | -8/Materials | Identified exit to Garrison 2173 | -8/Materials | Entered Garrison 2193 | -8/Garrison | Triggered checkpoint 2256 | -8/Garrison | Build established: Mutant 2298 | -8/Garrison | Triggered checkpoint 2431 | -8/Garrison | Discovered new exit (range 10) 2560 | -8/Garrison | Triggered checkpoint 2560 | -8/Garrison | Discovered new exit (range 10) 2584 | -8/Garrison | Garrison Relay disabled 2649 | -8/Garrison | Rescued a captive Derelict 2679 | -8/Garrison | Phase Generator disabled 2712 | -8/Garrison | Triggered checkpoint 2748 | -8/Garrison | Triggered checkpoint 2748 | -8/Garrison | Assimilated X-62 Marksman with FLK Orb 2823 | -8/Garrison | Garrison Relay disabled 2924 | -8/Garrison | Triggered checkpoint 2946 | -8/Garrison | Triggered checkpoint 2991 | -8/Garrison | Discovered new exit (range 7) 3036 | -8/Garrison | Triggered checkpoint 3043 | -8/Garrison | Core integrity fell below 50% 3087 | -8/Garrison | Lost 3 parts (1p1n1u) 3104 | -8/Garrison | Garrison Relay disabled 3108 | -8/Garrison | Discovered new exit (range 27) 3108 | -8/Garrison | Discovered new exit (range 39) 3108 | -8/Garrison | Discovered new exit (range 78) 3272 | -8/Garrison | Spotted B-75 Beast 3274 | -8/Garrison | Assimilated B-75 Beast with FLK Orb 3366 | -8/Garrison | Garrison Relay disabled 3768 | -8/Garrison | Entered Factory 3768 | -7/Factory | Accompanied by 3 allies 3768 | -7/Factory | Evolved 2 slots: Utility x2 3877 | -7/Factory | Discovered new exit (range 13) 4073 | -7/Factory | Build established: Hacker-Sprinter 4168 | -7/Factory | First assault squad dispatched 4173 | -7/Factory | Garrison activated, responded to threat 4214 | -7/Factory | Fabricated H-55 Commando (x2) 4300 | -7/Factory | High security lockdown imminent 4325 | -7/Factory | Fabricated I-36 Angel? 4380 | -7/Factory | High security lockdown engaged 4450 | -7/Factory | Discovered new exit (range 48) 4523 | -7/Factory | Build established: Hacker-Mutant 4591 | -7/Factory | Destroyed 9 combat bots 4627 | -7/Factory | Entered Lower Caves 4627 | -7/Lower Caves | Accompanied by 1 ally 4639 | -7/Lower Caves | Met a Warlord Commander 4640 | -7/Lower Caves | Learned location of Warlord (-5) 4641 | -7/Lower Caves | Warlord Commander delivered Encrypted Comm Array 4645 | -7/Lower Caves | Found Encrypted Comm Array 4800 | -7/Lower Caves | Learned Factory emergency access door positions 4820 | -7/Lower Caves | Identified exit to Lower Caves 4874 | -7/Lower Caves | Build established: Hacker-Sprinter 4928 | -7/Lower Caves | Attracted the attention of an 0b10 checkpoint 5105 | -7/Lower Caves | Encountered a Warlord checkpoint 5134 | -7/Lower Caves | Entered another Lower Caves area 5134 | -7/Lower Caves | Accompanied by 1 ally 5216 | -7/Lower Caves | Build established: Hacker-Mutant 5246 | -7/Lower Caves | Learned location of 1 exit from Factory 5270 | -7/Lower Caves | Encountered a Warlord checkpoint 5361 | -7/Lower Caves | Lost 3 parts (1n1u1w) 5518 | -7/Lower Caves | Found Prototype Device 5911 | -7/Lower Caves | Learned Factory terminal intel 5998 | -7/Lower Caves | Discovered new exit (range 9) 6231 | -7/Lower Caves | Entered Zion 6277 | -7/Zion | Given the Hacking Drone Bay 6278 | -7/Zion | Found Prototype Device 6278 | -7/Zion | Identified Hacking Drone Bay 6281 | -7/Zion | Discovered new exit (range 14) 6338 | -7/Zion | Identified exit to Deep Caves 6420 | -7/Zion | Rebuked by Imprinter 6532 | -7/Zion | Found GAL Module 6620 | -7/Zion | Build established: Hacker-Sprinter 6629 | -7/Zion | Entered Proximity Caves 6652 | -6/Proximity Caves | Learned Factory machine intel 6782 | -6/Proximity Caves | Core integrity fell below 50% 6793 | -6/Proximity Caves | Spotted B-75 Beast 6807 | -6/Proximity Caves | Discovered new exit (range 7) 6833 | -6/Proximity Caves | Entered Factory 6833 | -6/Factory | Evolved 2 slots: Utility x2 6834 | -6/Factory | Identified exit to Lower Caves 6834 | -6/Factory | Identified Heart of Steel 6836 | -6/Factory | Loaded intel: 282 machine locations 6837 | -6/Factory | Loaded intel: 28 terminal locations 6883 | -6/Factory | Joined by Warlord Muscle squad 6947 | -6/Factory | Identified exit to Extension 6951 | -6/Factory | Joined by Warlord Pyro squad 6982 | -6/Factory | Discovered new exit (range 11) 6984 | -6/Factory | Assimilated H-61 Shepherd with FLK Orb 6997 | -6/Factory | Joined by Warlord Pyro squad 7183 | -6/Factory | Lost 3 allies 7398 | -6/Factory | Build established: Hacker-Mutant 7501 | -6/Factory | Joined by Warlord Muscle squad 7606 | -6/Factory | Joined by Warlord Muscle squad 7626 | -6/Factory | Fabricated H-55 Commando? 7722 | -6/Factory | Repaired Mic. Nuclear Core 7768 | -6/Factory | Repaired Hvy. Missile Launcher? 7773 | -6/Factory | Fabricated I-36 Angel? 7837 | -6/Factory | Discovered new exit (range 15) 8004 | -6/Factory | Identified exit to Garrison 8085 | -6/Factory | Garrison activated, responded to threat 8106 | -6/Factory | Cargo convoy interrupted 8139 | -6/Factory | Destroyed 9 combat bots 8190 | -6/Factory | Lost 4 parts (2u2w) 8199 | -6/Factory | Lost 8 allies 8658 | -6/Factory | Assimilated H-61 Shepherd with FLK Orb 8832 | -6/Factory | Lost 3 parts (1p1n1u) 8933 | -6/Factory | First assault squad dispatched 9379 | -6/Factory | Heart of Steel transformed into Warbot 9391 | -6/Factory | Core integrity fell below 50% 9538 | -6/Factory | Garrison activated, responded to threat 9616 | -6/Factory | Identified exit to Garrison 9645 | -6/Factory | High security lockdown imminent 9681 | -6/Factory | Garrison activated, responded to threat 9684 | -6/Factory | Lost 5 parts (1p1n1u2w) 9717 | -6/Factory | Entered Garrison 9717 | -6/Garrison | Accompanied by 1 ally (Warbot) 9771 | -6/Garrison | Garrison Relay disabled 9860 | -6/Garrison | Triggered checkpoint 9952 | -6/Garrison | Triggered checkpoint 10016 | -6/Garrison | Discovered new exit (range 12) 10035 | -6/Garrison | Spotted B-75 Beast 10037 | -6/Garrison | Assimilated B-75 Beast with FLK Orb 10103 | -6/Garrison | Entered Factory 10103 | -5/Factory | Accompanied by 2 allies (Warbot) 10103 | -5/Factory | Evolved 2 slots: Utility x2 10212 | -5/Factory | Build established: Scavenger-Mutant 10224 | -5/Factory | Discovered new exit (range 17) 10372 | -5/Factory | Garrison activated, responded to threat 10427 | -5/Factory | Identified exit to Garrison 10427 | -5/Factory | Entered Garrison 10438 | -5/Garrison | Triggered checkpoint 10494 | -5/Garrison | Lost 3 parts (1p1n1u) 10544 | -5/Garrison | Triggered checkpoint 10572 | -5/Garrison | Learned Factory security intel 10642 | -5/Garrison | Triggered checkpoint 10670 | -5/Garrison | Discovered new exit (range 8) 10687 | -5/Garrison | Triggered checkpoint 10897 | -5/Garrison | Garrison Relay disabled 10902 | -5/Garrison | Triggered checkpoint 11041 | -5/Garrison | Discovered new exit (range 13) 11192 | -5/Garrison | Identified exit to Factory 11204 | -5/Garrison | Garrison Relay disabled 11285 | -5/Garrison | Garrison Relay disabled 11314 | -5/Garrison | Triggered checkpoint 11364 | -5/Garrison | Discovered exit to Factory (range 17) 11426 | -5/Garrison | Spotted B-75 Beast 11440 | -5/Garrison | Build established: Hacker-Mutant 11447 | -5/Garrison | Entered Factory 11470 | -5/Factory | Identified exit to DSF 11739 | -5/Factory | Identified exit to Upper Caves 11741 | -5/Factory | Discovered new exit (range 8) 11747 | -5/Factory | First assault squad dispatched 11918 | -5/Factory | Repaired Cmb. Gravmag System? 12019 | -5/Factory | Repaired Gravmag Array 12125 | -5/Factory | Fabricated O-24 Administrator (x1) 12178 | -5/Factory | Fabricated P-60 Hacker? 12194 | -5/Factory | Fabricated P-60 Hacker (x2) 12223 | -5/Factory | Murdered 4 allies 12399 | -5/Factory | Fabricated P-60 Hacker? 12436 | -5/Factory | Hacker 6f assimilated hostile L-41 Fighter 12436 | -5/Factory | Hacker 6e assimilated hostile G-67 Veteran 12535 | -5/Factory | Fabricated P-60 Hacker? 12588 | -5/Factory | High security lockdown imminent 12668 | -5/Factory | High security lockdown engaged 12743 | -5/Factory | Fabricated P-60 Hacker? 12885 | -5/Factory | Entered Upper Caves 12911 | -5/Upper Caves | Lost 4 allies 13102 | -5/Upper Caves | Discovered new exit (range 7) 13126 | -5/Upper Caves | Identified exit to Upper Caves 13126 | -5/Upper Caves | Entered another Upper Caves area 13200 | -5/Upper Caves | Discovered new exit (range 15) 13208 | -5/Upper Caves | Identified exit to Factory 13469 | -5/Upper Caves | Core integrity fell below 50% 13495 | -5/Upper Caves | Lost 3 parts (1p1u1w) 13595 | -5/Upper Caves | Discovered new exit (range 10) 13601 | -5/Upper Caves | Identified exit to Warlord 13638 | -5/Upper Caves | Attracted the attention of an 0b10 base 13685 | -5/Upper Caves | Destroyed 7 combat bots 13809 | -5/Upper Caves | Entered Warlord 13930 | -5/Warlord | Found Prototype Special Weapon 13930 | -5/Warlord | Identified RU-N14's Throwing Claymores v3 13932 | -5/Warlord | Found RU-N14's Throwing Claymores v3 14096 | -5/Warlord | Warlord's base attacked by MAIN.C 14162 | -5/Warlord | Met Warlord 14219 | -5/Warlord | Found Prototype Energy Gun 14219 | -5/Warlord | Identified Vortex Shotgun 14226 | -5/Warlord | Found Vortex Shotgun 14312 | -5/Warlord | Warlord forces counterattacked 14359 | -5/Warlord | Destroyed 9 combat bots 14396 | -5/Warlord | Spotted Striker 14397 | -5/Warlord | Spotted Striker 14439 | -5/Warlord | Lost 5 allies 14498 | -5/Warlord | Spotted Striker 14498 | -5/Warlord | Spotted Executioner 14510 | -5/Warlord | Destroyed Executioner 14531 | -5/Warlord | Destroyed 11 combat bots 14534 | -5/Warlord | Lost 7 allies 14603 | -5/Warlord | Found RU-N14's Throwing Claymores v3 14605 | -5/Warlord | Found RU-N14's Throwing Claymores v3 14643 | -5/Warlord | Spotted Striker 14650 | -5/Warlord | Spotted Executioner 14651 | -5/Warlord | Destroyed Executioner 14679 | -5/Warlord | Spotted Striker 14696 | -5/Warlord | Spotted Executioner 14696 | -5/Warlord | Spotted Striker 14696 | -5/Warlord | Spotted B-75 Beast 14696 | -5/Warlord | Spotted B-86 Titan 14708 | -5/Warlord | Destroyed 8 combat bots 14735 | -5/Warlord | Lost 3 allies 14771 | -5/Warlord | Warlord base infiltrated, sounded retreat 14772 | -5/Warlord | Destroyed 11 combat bots 14845 | -5/Warlord | System corruption reached 10% 14908 | -5/Warlord | Spotted Executioner 14924 | -5/Warlord | Discovered new exit (range 13) 14930 | -5/Warlord | Identified exit to Proximity Caves 14932 | -5/Warlord | Entered Proximity Caves 14942 | -4/Proximity Caves | Lost 4 allies 14972 | -4/Proximity Caves | Attacked by a faux Warlord 15051 | -4/Proximity Caves | Entered Factory 15051 | -4/Factory | Evolved 2 slots: Power x1, Propulsion x1 15052 | -4/Factory | Identified exit to Upper Caves 15331 | -4/Factory | Lost 3 parts (2u1w) 15357 | -4/Factory | Identified exit to Armory 15529 | -4/Factory | Repaired Cmb. Gravmag System 15551 | -4/Factory | First assault squad dispatched 15600 | -4/Factory | Repaired Imp. Linear Gravjet 15720 | -4/Factory | Fabricated Adv. Hacking Suite? 15835 | -4/Factory | System corruption reached 10% 15895 | -4/Factory | Lost 4 parts (1p3u) 15992 | -4/Factory | Fabricated P-60 Hacker? 15998 | -4/Factory | Spotted B-86 Titan 16037 | -4/Factory | Core integrity fell below 50% 16065 | -4/Factory | Lost 8 parts (2n4u2w) 16208 | -4/Factory | Entered Upper Caves 16260 | -4/Upper Caves | Learned Research terminal intel 16277 | -4/Upper Caves | Core integrity fell below 20% 16333 | -4/Upper Caves | Lost 3 parts (2u1w) 16348 | -4/Upper Caves | Discovered new exit (range 11) 16351 | -4/Upper Caves | Entered another Upper Caves area 16376 | -4/Upper Caves | Destroyed by S-27 Virus with Autogun Last Messages --------------- 16298_ Acquired 65 matter. 16301_ System corrupted: Heat flow error (+257). 16302_ Hyp. Mass Driver destroyed. 16303_ Acquired VTOL Module. 16304_ Acquired 5 matter. 16305_ Acquired 3 matter. 16309_ Acquired 115 matter. 16310_ Slug penetrates Machine. 16310_ Slug penetrates Wall. 16334_ Searching scrap... 16334_ Found Adv. Terrain Scan Processor. 16334_ Found Adv. Plasma Cannon. 16334_ Found 33 Matter. 16335_ Acquired Adv. Plasma Cannon. 16336_ Acquired 33 matter. 16348_ EXIT=FOUND LOCATION=UNKNOWN GOAL=ESCAPE 16362_ System corrupted: Energy discharge (-29). 16367_ S-27 Virus destroyed. Map ----- +----------------------------------------------------+ | ?????????????????????????????????????????????????? | | ?????????????????????????????????????????????????? | | ?????????????????????????????????????????????????? | | ?????????????????????????????????????????????????? | | ?????????????????????????????????????????????????? | | ?????????????????????????????????????????????????? | | ?????????????????????????????????????????????????? | | ?????????????????????????????????????????????????? | | ?????????????????????????????????????????????????? | | ?????????????????????????????????????????????????? | | ????????????????????????????????? #?????????????? | | ????????????????????????????????? ????????????? | | ???????????????????????????????? ?????????????? | | ???????????????????????????????? ??????????????? | | ??????????????????#???????????? #??????????????? | | ?????????????# ??? ??????????? #??????????????? | | ?????????????? ##? ??????????? #??????????????? | | ????????????? # # ????????? #???????????????? | | ?????????????? # # ???????? #???##???????????? | | ????????????# # ???????# ### ##??????????? | | ??????????????? ????## #??????????? | | ??????????????????# ##### #??????????? | | ???????????????# # = ???????????? | | ?????????????#$ %s #??????????????????? | | ??????????? ##;ss# ##??????????????????? | | ????????????????????????#@####???????????????????? | | ????????????????????????# ##?????????????????????? | | ???????????????????????##s #?????????????????????? | | ?????????? ##### #?????????????????????? | | ?????????????????# #?????????????????????? | | ?????????????????####### ##?????????????????????? | | ?????????????????????### ###???????????????????? | | ???????????????????### ##??????????????????? | | ??????????????????## ## # ##?????????????????? | | ??????????????????# ## #?????????????????? | | ??????????????????# #### ##????????????????? | | ??????????????????# ##?# # #????????????????? | | ??????????????????###### # ##????????????????? | | ??????????????????????# # #????????????????? | | ??????????????????????# # #????????????????? | | ??????????????????????###########????????????????? | | ?????????????????????????????????????????????????? | | ?????????????????????????????????????????????????? | | ?????????????????????????????????????????????????? | | ?????????????????????????????????????????????????? | | ?????????????????????????????????????????????????? | | ?????????????????????????????????????????????????? | | ?????????????????????????????????????????????????? | | ?????????????????????????????????????????????????? | | ?????????????????????????????????????????????????? | +----------------------------------------------------+ Best States ------------- Heat Dissipation 75 Energy Generation 37 Energy Capacity 550 Matter Stores 300 Matter Capacity 550 Sight Range 18 Terrain Scan Range 16 Terrain Scan Density 10 Jamming Range 14 Additional Mass Support 9 Armor Coverage 450 Propulsion Shielding 33 Weapon Shielding 66 Evasion (%) 72 Targeting Accuracy 13 Target Analysis 12 Core Analysis 6 Matter Filtering 50 Kinecelleration 40 Offensive Hacking 24 Defensive Hacking 60 Authchip Count 4 Item Schematics ----------------- Adv. Hacking Suite | -7/Factory | Hacked Field Propulsion Drive | -7/Factory | Scanalyzed Mic. Fission Core | -7/Factory | Scanalyzed Hvy. Plasma Cannon | -7/Zion | Archive Force Booster | -7/Zion | Archive Plasma Cannon | -7/Zion | Archive Lyr. Medium Armor Plating | -7/Zion | Archive Point Defense System | -7/Zion | Archive Power Maul | -7/Zion | Archive Thermal Shield | -7/Zion | Archive Kinecellerator | -7/Zion | Archive Imp. Medium Treads | -7/Zion | Archive Corruption Screen | -7/Zion | Archive Angular Momentum Engine | -7/Zion | Archive Imp. Deuterium Engine | -7/Zion | Archive Drone Bay | -7/Zion | Archive Proton Missile Launcher | -7/Zion | Archive Antigrav System | -7/Zion | Archive Imp. KE Penetrator | -7/Zion | Archive Cmb. Airjet | -6/Factory | Scanalyzed Cld. Aerolev Unit | -6/Factory | Scanalyzed Imp. System Restoration Module | -6/Factory | Scanalyzed Imp. Proton Missile Launcher | -6/Factory | Scanalyzed Gravmag Array | -6/Factory | Scanalyzed Lgt. Angular Momentum Engine | -6/Factory | Scanalyzed Hvy. Linear Accelerator | -5/Factory | Scanalyzed Rnf. Fission Core | -4/Factory | Scanalyzed Hyp. Mass Driver | -4/Factory | Scanalyzed Robot Schematics ------------------ I-36 Angel | -7/Factory | Hacked H-55 Commando | -7/Factory | Hacked B-48 Gladiator | -7/Zion | Archive S-27 Virus | -7/Zion | Archive O-24 Administrator | -6/Factory | Hacked M-28 Smith | -6/Factory | Hacked P-60 Hacker | -6/Factory | Hacked Fabricated ------------ H-55 Commando | x2 | -7/Factory | Authchip I-36 Angel | x1 | -7/Factory | Authchip H-55 Commando | x2 | -6/Factory I-36 Angel | x1 | -6/Factory O-24 Administrator | x1 | -5/Factory | Authchip P-60 Hacker | x2 | -5/Factory | Authchip P-60 Hacker | x2 | -5/Factory | Authchip P-60 Hacker | x2 | -5/Factory P-60 Hacker | x2 | -5/Factory P-60 Hacker | x2 | -5/Factory Adv. Hacking Suite | x1 | -4/Factory P-60 Hacker | x2 | -4/Factory Alien Tech Used ----------------- None Achievements -------------- None Challenges ------------ None Game ------ Seed ScatterParticleExoskeleton Manual? 0 Play Time 05:54:15 Cumulative 215.6 hours Start 2024.03.30 @ 11:12:05 End 2024.03.30 @ 20:20:57 Sessions 5 Manual Loads 0 Difficulty Rogue Special Mode None Game No. 93 Rogue 93 Adventurer 0 Explorer 0 Win Type - Total 0 Types 0/0/0/0/0/0/0/0/0 Lore% 62 Gallery% 68 Achievement% 55 Wizard Run 0 Options --------- Layout 0 ASCII 0 Keyboard 1 Movement Arrows Keybinds 0 Fullscreen 1 Font 12/Proggy Map View 83x54 Zoom Use 0% Tactical HUD 1 Map Filters NONE Filters NONE Steam 0 RUN: b1ee9f74-de82-48f7-94b4-ade8fdba9803